Cogmind - Beta 13 @@@ ROGUE MODE // 2024.04.03 @ 22:32:27 Player: J-mop Result: Self-destructed Performance ------------- Evolutions (2) 1000 Regions Visited (3) 600 Robots Destroyed (23) 115 Value Destroyed (483) 483 Prototype IDs (0) 0 Alien Tech Used (0) 0 Bonus (0) 0 TOTAL SCORE: 2198 Bonus ------- None Cogmind --------- Core Integrity 550/550 Matter 264/300 Energy 125/125 System Corruption 0% Temperature Cool (0) Movement Rolling (200) Ox8 Location -8/Materials Parts ------- > --- POWER (1) -------- Light Ion Engine > --- PROPULSION (3) --- Wheel > --- UTILITY (5) ------ Huge Storage Unit Structural Scanner > --- WEAPON (2) ------- Assault Rifle Assault Rifle > --- INVENTORY (25) --- Light Ion Engine Subdweller Power Source Compact Wheel Flight Unit High-capacity Matter Pod (200) Assault Rifle Battle Cannon Datajack Heavy Hammer Peak State ------------ > --- POWER ------------ Ion Engine > --- PROPULSION ------- Wheel Wheel > --- UTILITY ---------- Large Storage Unit Structural Scanner > --- WEAPON ----------- Assault Rifle Heavy Hammer > --- INVENTORY -------- Light Ion Engine Light Ion Engine Compact Wheel Huge Storage Unit High-capacity Matter Pod Assault Rifle Assault Rifle Assault Rifle Assault Rifle Datajack [Rating: 9] Favorites ----------- Power Ion Engine Engine Ion Engine Propulsion Light Treads Treads Light Treads Wheel Wheel Utility Structural Scanner Device Structural Scanner Storage Huge Storage Unit Weapon Assault Rifle Ballistic Gun Assault Rifle Impact Weapon Heavy Hammer Build | -11 -10 -10 -8 ------- Run | Yrd Mat Sub Mat Slots Evolved 4 | . . . 4 Power . | . . . . Propulsion 1 | . . . 1 Utility 3 | . . . 3 Weapon . | . . . . Parts Attached 19 | 4 13 1 1 Power 3 | 1 1 1 . Engine 3 | 1 1 1 . Core . | . . . . Reactor . | . . . . Propulsion 4 | 2 2 . . Treads 2 | 2 . . . Leg . | . . . . Wheel 2 | . 2 . . Hover . | . . . . Flight . | . . . . Utility 4 | . 4 . . Device 1 | . 1 . . Storage 3 | . 3 . . Processor . | . . . . Hackware . | . . . . Protection . | . . . . Artifact . | . . . . Weapon 8 | 1 6 . 1 Energy Gun . | . . . . Energy Cannon . | . . . . Ballistic Gun 6 | 1 4 . 1 Ballistic Cannon . | . . . . Launcher . | . . . . Special Weapon . | . . . . Impact Weapon 2 | . 2 . . Slashing Weapon . | . . . . Piercing Weapon . | . . . . Special Melee Weapon . | . . . . Unidentified Prototypes . | . . . . Parts Lost 3 | . 3 . . Power . | . . . . Propulsion 2 | . 2 . . Utility . | . . . . Weapon 1 | . 1 . . Highest Loss Streak 1 | . 1 . . To Critical Strikes . | . . . . Average Slot Usage (%) 83 | . 83 85 54 Engine 13 | . 14 14 9 Treads 12 | . 15 . . Wheel 11 | . 10 14 9 Device 6 | . 4 14 9 Storage 11 | . 10 14 9 Ballistic Gun 22 | . 24 14 18 Impact Weapon 5 | . 2 14 . Naked Turns . | . . . . Heaviest Build 91 | 7 91 91 89 Greatest Support 40 | 40 40 10 10 Greatest Overweight (x) 9 | . 9 9 8 Average Overweight (x) 2 | . 1 8 8 Largest Inventory Capacity 25 | 5 25 25 25 Average Capacity 15 | 5 13 25 25 Most Carried 11 | 4 10 11 10 Average Carried 7 | 3 7 9 9 Final Capacity 25 | 5 25 25 25 Final Carried 11 | 4 10 11 9 Class Distribution -------------------- 84% | Mutant 15% | Scavenger-Mutant Dominant Class ---------------- Mutant | -10/Materials Mutant | -10/Subcaves Mutant | -8/Materials Resources | -11 -10 -10 -8 ----------- Run | Yrd Mat Sub Mat Matter Collected 899 | 194 705 . . Remotely . | . . . . Salvage Created 817 | . 817 . . Parts 56 | . 56 . . Haulers Intercepted 1 | . 1 . . Recyclers Shooed 1 | . 1 . . Parts Field Recycled . | . . . . Retrieved Matter . | . . . . Parts Self-Destructed . | . . . . Prevented . | . . . . Kills | -11 -10 -10 -8 ------- Run | Yrd Mat Sub Mat Combat Hostiles Destroyed 13 | . 13 . . Melee 1 | . 1 . . Guns 12 | . 12 . . Classes Destroyed 7 | . 7 . . Worker 2 | . 2 . . Builder 4 | . 4 . . Hauler 1 | . 1 . . Recycler 2 | . 2 . . Watcher 1 | . 1 . . Swarmer 1 | . 1 . . Grunt 12 | . 12 . . Best Kill Streak 6 | . 6 . . Combat Bots Only 4 | . 4 . . Max Kills in Single Turn 1 | . 1 . . Gunslinging . | . . . . Exploded . | . . . . Melee 1 | . 1 . . Uniques/NPCs Destroyed . | . . . . Combat | -11 -10 -10 -8 -------- Run | Yrd Mat Sub Mat Hostile Shots Fired 91 | . 89 . 2 Missed 18 | . 18 . . Damage Taken 825 | . 793 . 32 Core 167 | . 167 . . Absorbed by Shields . | . . . . Core Remaining (%) 66 | 100 . 33 . Volleys Fired 56 | . 55 . 1 Largest 2 | . 2 . 2 Hottest 40 | . 40 . 40 Shots Fired 112 | . 110 . 2 Gun 112 | . 110 . 2 Cannon . | . . . . Launcher . | . . . . Special . | . . . . Kinetic 112 | . 110 . 2 Thermal . | . . . . Explosive . | . . . . Electromagnetic . | . . . . Robot Hit Streak 19 | . 19 . 2 Robot Miss Streak 4 | . 4 . 1 Penetration Max . | . . . . Secondary Targets 1 | . 1 . . Max Gunslinging Chain 1 | . 1 . . Shots Hit Robots 81 | . 80 . 1 Core Hits 33 | . 33 . . Critical Kills 1 | . 1 . . Critical Parts Destroyed . | . . . . Critical Strikes 1 | . 1 . . Smash 1 | . 1 . . Melee Attacks 8 | . 8 . . Impact 8 | . 8 . . Slashing . | . . . . Piercing . | . . . . Sneak Attacks 2 | . 2 . . Combat Hostiles . | . . . . Follow-up Attacks . | . . . . Damage Inflicted 1206 | . 1191 . 15 Guns 993 | . 978 . 15 Cannons . | . . . . Explosions . | . . . . Melee 213 | . 213 . . Ramming . | . . . . Kinetic 993 | . 978 . 15 Thermal . | . . . . Explosive . | . . . . Electromagnetic . | . . . . Impact 213 | . 213 . . Slashing . | . . . . Piercing . | . . . . Highest Corruption 1 | . 1 1 . Average Corruption 1 | . 1 1 . Corruption Purged . | . . . . Corruption Blocked . | . . . . Effects 7 | . 4 3 . Message Errors 1 | . . 1 . Matter Fused 2 | . 2 . . Heat Flow Errors 2 | . 1 1 . Data Loss (minor) 2 | . 1 1 . Overload Shots . | . . . . Overflow Damage 73 | . 73 . . Projectiles . | . . . . Explosions . | . . . . Melee 73 | . 73 . . Knockbacks . | . . . . Impact . | . . . . Kinetic . | . . . . Secondary . | . . . . Self-Inflicted Damage . | . . . . Shots . | . . . . Rammed . | . . . . Targets Rammed . | . . . . Kicked . | . . . . Crushed . | . . . . Highest Temperature 256 | . 105 256 . Average Temperature 45 | . 17 136 . Received Heat Transfer 408 | . 390 . 18 Siege Activations . | . . . . Robots Corrupted . | . . . . Combat Hostiles . | . . . . Parts Fried 1 | . 1 . . Impact Corruptions 5 | . 5 . . Robots Melted . | . . . . Combat Hostiles . | . . . . Parts Melted . | . . . . Heat Transferred . | . . . . Parts Sabotaged . | . . . . Parts Stolen . | . . . . Parts Stripped . | . . . . Power Chain Reactions . | . . . . Alert | -11 -10 -10 -8 ------- Run | Yrd Mat Sub Mat Peak Influence 237 | . 237 . 37 Initial 37 | . . . 37 Average 86 | . 93 . 37 Maximum Alert Level 1 | . 1 . . Low Security (%) 86 | 100 84 . 100 Level 1 13 | . 15 . . Level 2 . | . . . . Level 3 . | . . . . Level 4 . | . . . . Level 5 . | . . . . High Security . | . . . . Max Security . | . . . . Squads Dispatched 6 | . 5 . 1 Investigation 3 | . 3 . . Extermination . | . . . . Reinforcement 3 | . 2 . 1 Assault . | . . . . Garrison . | . . . . Intercept . | . . . . Searches Triggered . | . . . . Construction Impeded . | . . . . Haulers Reinforced . | . . . . Active Scanning Responses . | . . . . Cargo Convoy Interrupts . | . . . . Stealth | -11 -10 -10 -8 --------- Run | Yrd Mat Sub Mat Distress Signals . | . . . . Communications Jammed . | . . . . Distress Signals . | . . . . Times Spotted 27 | . 24 . 3 Peak Tracking Total 5 | . 5 . 2 Tactical Retreats 1 | . 1 . . Traps | -11 -10 -10 -8 ------- Run | Yrd Mat Sub Mat Traps Triggered 2 | . 2 . . Indirectly . | . . . . Trap Hack Attempts . | . . . . Triggered . | . . . . Disarmed . | . . . . Reprogrammed . | . . . . Reused . | . . . . Traps Extracted . | . . . . Installed . | . . . . Triggered . | . . . . Machines | -11 -10 -10 -8 ---------- Run | Yrd Mat Sub Mat Machines Disabled . | . . . . Max in Single Turn . | . . . . Machines Repaired . | . . . . Machines Dismantled . | . . . . Machines Sabotaged . | . . . . Overloaded Fab Kills . | . . . . Hacking | -11 -10 -10 -8 --------- Run | Yrd Mat Sub Mat Machines Accessed 5 | . 5 . . Terminals 5 | . 5 . . Fabricators . | . . . . Repair Stations . | . . . . Recycling Units . | . . . . Scanalyzers . | . . . . Garrison Access . | . . . . Total Hacks 17 | . 17 . . Successful 4 | . 4 . . Failed 13 | . 13 . . Catastrophic 4 | . 4 . . Database Lockouts . | . . . . Manual 15 | . 15 . . Terminals 17 | . 17 . . Fabricators . | . . . . Repair Stations . | . . . . Recycling Units . | . . . . Scanalyzers . | . . . . Garrison Access . | . . . . Terminal Hacks 4 | . 4 . . Branch Access Points 1 | . 1 . . Emergency Access Points 1 | . 1 . . Alert Level 1 | . 1 . . Hauler Manifests 1 | . 1 . . Fabricator Hacks . | . . . . Repair Station Hacks . | . . . . Recycling Unit Hacks . | . . . . Scanalyzer . | . . . . Garrison Access Hacks . | . . . . Unauthorized Hacks . | . . . . Terminals . | . . . . Fabricators . | . . . . Repair Stations . | . . . . Recycling Units . | . . . . Scanalyzers . | . . . . Garrison Access . | . . . . Data Cores Recovered . | . . . . Used . | . . . . Hacking Detections 5 | . 5 . . Full Trace Events 2 | . 2 . . Feedback Events . | . . . . Feedback Blocked . | . . . . Robot Schematics Acquired . | . . . . Robots Built . | . . . . Authchips . | . . . . Time . | . . . . Total Robot Build Rating . | . . . . Part Schematics Acquired . | . . . . Parts Built . | . . . . Authchips . | . . . . Time . | . . . . Total Part Build Rating . | . . . . Parts Repaired . | . . . . Time . | . . . . Parts Recycled . | . . . . Recycled Matter . | . . . . Retrieved Matter . | . . . . Retrieved Components . | . . . . Parts Scanalyzed . | . . . . Part Schematics Acquired . | . . . . Parts Damaged . | . . . . Bothacking | -11 -10 -10 -8 ------------ Run | Yrd Mat Sub Mat Used RIF Installer . | . . . . Robots Hacked . | . . . . Non-combat . | . . . . Combat . | . . . . Robot Hacks Applied . | . . . . Relay Couplers Released . | . . . . Fabnet Peak Effective % . | . . . . Robots Rewired . | . . . . Allies Hacked . | . . . . Hacks Repelled . | . . . . Allies | -11 -10 -10 -8 -------- Run | Yrd Mat Sub Mat Total Allies . | . . . . Largest Group . | . . . . Highest-Rated Group . | . . . . Highest-Rated Ally . | . . . . Total Orders . | . . . . Ally Attacks . | . . . . Total Damage . | . . . . Kills . | . . . . Allies Corrupted . | . . . . Allies Melted . | . . . . Intel | -11 -10 -10 -8 ------- Run | Yrd Mat Sub Mat Robot Analysis Total . | . . . . Derelict Logs Recovered 1 | . . 1 . Drone Launches . | . . . . Drone Recoveries . | . . . . Exploration | -11 -10 -10 -8 ------------- Run | Yrd Mat Sub Mat Turns Passed 1427 | 82 1045 284 16 Spaces Moved 764 | 51 574 134 5 Core 10 | 10 . . . Treads 307 | 41 266 . . Legs . | . . . . Wheels 447 | . 308 134 5 Hover . | . . . . Flight . | . . . . Fastest Speed 50 | 50 95 200 200 Average Speed 152 | 138 139 210 200 Slowest Speed 240 | 160 240 215 200 Overloaded Moves . | . . . . Propulsion Burnouts . | . . . . Robots Hopped . | . . . . Cave-ins Triggered . | . . . . Exploration Rate (%) 22 | 4 72 9 4 Regions Visited 3 Branch Regions 1 Pre-discovered Areas 2 | . . 2 . Known Exits Taken . | . . . . Unknown Exits Taken 3 | 1 1 1 . Scrap Searched . | . . . . Spaces Dug 2 | . 2 . . Terrain Destroyed 2 | . 2 . . Melee 2 | . 2 . . Projectile . | . . . . AOE . | . . . . Terrain Rammed . | . . . . Walls Destroyed . | . . . . Machines Disabled . | . . . . Actions | -11 -10 -10 -8 --------- Run | Yrd Mat Sub Mat Total 904 | 63 695 137 9 Wait 24 | 1 23 . . Move 761 | 50 573 133 5 Hop . | . . . . Pick Up 27 | 8 17 2 . Fast Attach . | . . . . Attach 11 | 4 6 1 . Detach . | . . . . Swap 8 | . 7 . 1 Drop 9 | . 6 1 2 Fire 56 | . 55 . 1 Melee 8 | . 8 . . Ram . | . . . . Kick . | . . . . Crush . | . . . . Escape Stasis . | . . . . Rewire . | . . . . Trap . | . . . . Miscellaneous . | . . . . Route ------- -11/Scrapyard -10/Materials (discovered 5 exits: [*Mat x2] / Min x2 / [*Sub]) -10/Subcaves -8/Materials History --------- Turn | Location | Event 5 | -11/Scrapyard | Discovered new exit (range 15) 83 | -11/Scrapyard | Entered Materials 182 | -10/Materials | Identified exit to Mines 305 | -10/Materials | Build established: Mutant 526 | -10/Materials | Discovered new exit (range 7) 641 | -10/Materials | Core integrity fell below 50% 987 | -10/Materials | Discovered new exit (range 8) 1097 | -10/Materials | Discovered new exit (range 12) 1128 | -10/Materials | Entered Subcaves 1135 | -10/Subcaves | Discovered new exit (range 7) 1142 | -10/Subcaves | Learned location of Zion (-7) 1142 | -10/Subcaves | Met a Zionite searching for "candidates" 1306 | -10/Subcaves | Shifting Twisted Machinery released Sub. Power Source 1368 | -10/Subcaves | Shifting Twisted Machinery released Battle Cannon 1412 | -10/Subcaves | Entered Materials 1412 | -8/Materials | Evolved 4 slots: Propulsion x1, Utility x3 1428 | -8/Materials | Self-destructed Last Messages --------------- System corrupted: Heat flow error (+296). System corrupted: Component data lost. Sub. Power Source falls loose from the Twisted Machinery. 0J-NAI(z) examines a few pieces of the Twisted Machinery. Dropped Ion Engine. Battle Cannon falls loose from the Twisted Machinery. YFMRQ|NM=:X/N 8 P GBGTIEX1 Acquired Battle Cannon. Acquired Sub. Power Source. PARAMETERS=PROPULSION+1,UTILITY+3 LOCATION=UNKNOWN GOAL=ESCAPE Dropped Assault Rifle. O-16 Technician: "IFF HANDSHAKE FAILED. SECURING TERMINAL." ALERT: Hostiles spotted, dispatching reinforcements to Terminal M002. Map ----- +----------------------------------------------------+ | | | | | | | | | | | | | | | | | | | | | | | ?????????????????????????????????????????????????? | | ?????????????????????????????????????????????????? | | ?????????????????????????????????????????????????? | | ?????????????????????????????????????????????????? | | ?????????????????????????????????????????????????? | | ?????????????????????????????????????????????????? | | ?????????????????????????????????????????????????? | | ?????????????????????????????????????????????????? | | ??????????????????????? ######???????????????????? | | ??????????????????????? ######???????????????????? | | ??????????????????????? # ##???????????????????? | | ??????????????????????? # [[##???????????????????? | | ????????????????## # ########?????????????? | | ????????????????#####+### ######## ????????????? | | ?????????? @ # ????????????? | | ?????????? + ????????????? | | ?????????? ! //] # ????????????? | | ??????????######## //] # ????????????? | | ??????????######## g /] # ????????????? | | ???????????????? # "g" # ????????????? | | ???????????????? # "G" !!##????????????? | | ???????????????? # """ !!##????????????? | | ???????????????? + ##????????????? | | ???????????????? # ? * ##????????????? | | ???????????????? # ? ################????????????? | | ???????????????? # ? # ######????????????? | | ?????????????????????????????????????????????????? | | ?????????????????????????????????????????????????? | | ?????????????????????????????????????????????????? | | ?????????????????????????????????????????????????? | | ?????????????????????????????????????????????????? | | ?????????????????????????????????????????????????? | | ?????????????????????????????????????????????????? | | ?????????????????????????????????????????????????? | | ?????????????????????????????????????????????????? | | ?????????????????????????????????????????????????? | | ?????????????????????????????????????????????????? | | ?????????????????????????????????????????????????? | | ?????????????????????????????????????????????????? | +----------------------------------------------------+ Best States ------------- Heat Dissipation 31 Energy Generation 10 Energy Capacity 250 Matter Stores 300 Matter Capacity 300 Sight Range 16 Terrain Scan Density 10 Evasion (%) 50 Recoil Reduction 2 Item Schematics ----------------- None Robot Schematics ------------------ None Fabricated ------------ Nothing Alien Tech Used ----------------- None Achievements -------------- None Challenges ------------ None Game ------ Seed LinkedCouplerSaw Manual? 0 Play Time 00:17:13 Cumulative 11.7 hours Start 2024.04.03 @ 22:15:47 End 2024.04.03 @ 22:32:27 Sessions 1 Manual Loads 0 Difficulty Rogue Special Mode None Game No. 8 Rogue 3 Adventurer 5 Explorer 0 Win Type - Total 0 Types 0/0/0/0/0/0/0/0/0 Lore% 10 Gallery% 11 Achievement% 15 Wizard Run 0 Options --------- Layout 1 ASCII 0 Keyboard 0 Movement Numpad Keybinds 0 Fullscreen 1 Font 24/Smallcaps Map View 50x35 Zoom Use 0% Tactical HUD 0 Map Filters NONE Filters NONE Steam 1 RUN: 45f03237-50d0-4a16-b0de-9cf711df4a72